[Event "Titled Tuesday Blitz May 16 Late 2023"]
[White "Piesik, Piotr"]
[Black "Rottenwohrer Suarez, Juan"]
[WhiteFideId "1136194"]
[BlackFideId "32068182"]
[WhiteElo "2299"]
[BlackElo "2174"]
[Result "1-0"]
[Round "07"]
[TimeControl "180+2"]
[Date "2023.05.16"]
[WhiteClock "0:00:05"]
[BlackClock "0:00:03"]

1. Nf3 {[%clk 0:03:00]}  Nf6 {[%clk 0:02:59]} 2. g3 {[%clk 0:03:01]}  g6 {[%clk 0:03:00]} 3. Bg2 {[%clk 0:03:01]}  Bg7 {[%clk 0:03:01]} 4. O-O {[%clk 0:03:01]}  O-O {[%clk 0:03:01]} 5. d4 {[%clk 0:03:01]}  d6 {[%clk 0:02:57]} 6. Nbd2 {[%clk 0:03:00]}  d5 {[%clk 0:02:48]} 7. Ne5 {[%clk 0:02:58]}  c5 {[%clk 0:02:30]} 8. dxc5 {[%clk 0:02:57]}  Qc7 {[%clk 0:02:18]} 9. Nd3 {[%clk 0:02:57]}  a5 {[%clk 0:01:58]} 10. e4 {[%clk 0:02:52]}  Bg4 {[%clk 0:01:50]} 11. Qe1 {[%clk 0:02:51]}  Rd8 {[%clk 0:01:39]} 12. h3 {[%clk 0:02:33]}  Bc8 {[%clk 0:01:29]} 13. e5 {[%clk 0:02:31]}  Nfd7 {[%clk 0:01:26]} 14. e6 {[%clk 0:02:31]}  Nxc5 {[%clk 0:01:24]} 15. exf7+ {[%clk 0:02:30]}  Kxf7 {[%clk 0:01:23]} 16. Nf3 {[%clk 0:02:26]}  Nxd3 {[%clk 0:01:16]} 17. cxd3 {[%clk 0:02:27]}  e5 {[%clk 0:01:12]} 18. Bg5 {[%clk 0:02:20]}  Re8 {[%clk 0:01:01]} 19. Rc1 {[%clk 0:02:14]}  Qb6 {[%clk 0:00:58]} 20. Be3 {[%clk 0:02:09]}  d4 {[%clk 0:00:58]} 21. Ng5+ {[%clk 0:02:05]}  Kf8 {[%clk 0:00:35]} 22. Bd2 {[%clk 0:01:18]}  h6 {[%clk 0:00:35]} 23. Ne4 {[%clk 0:01:07]}  Nc6 {[%clk 0:00:35]} 24. f4 {[%clk 0:01:03]}  Kg8 {[%clk 0:00:35]} 25. Nd6 {[%clk 0:01:01]}  Rd8 {[%clk 0:00:33]} 26. Nxc8 {[%clk 0:00:57]}  Raxc8 {[%clk 0:00:32]} 27. f5 {[%clk 0:00:58]}  gxf5 {[%clk 0:00:25]} 28. Rxf5 {[%clk 0:00:59]}  Nb4 {[%clk 0:00:14]} 29. Rxc8 {[%clk 0:00:55]}  Rxc8 {[%clk 0:00:14]} 30. Be4 {[%clk 0:00:52]}  Nc2 {[%clk 0:00:09]} 31. Qe2 {[%clk 0:00:48]}  Ne3 {[%clk 0:00:09]} 32. Bxe3 {[%clk 0:00:21]}  dxe3 {[%clk 0:00:10]} 33. Rf3 {[%clk 0:00:21]}  Rc1+ {[%clk 0:00:07]} 34. Kg2 {[%clk 0:00:21]}  Qc5 {[%clk 0:00:08]} 35. Qxe3 {[%clk 0:00:16]}  Rc2+ {[%clk 0:00:08]} 36. Kg1 {[%clk 0:00:13]}  Rc1+ {[%clk 0:00:08]} 37. Kh2 {[%clk 0:00:13]}  Rc2+ {[%clk 0:00:07]} 38. Kh1 {[%clk 0:00:13]}  Rc1+ {[%clk 0:00:07]} 39. Kg2 {[%clk 0:00:13]}  Rc2+ {[%clk 0:00:06]} 40. Kf1 {[%clk 0:00:13]}  Rc1+ {[%clk 0:00:04]} 41. Ke2 {[%clk 0:00:14]}  Rc2+ {[%clk 0:00:04]} 42. Kd1 {[%clk 0:00:13]}  Qxe3 {[%clk 0:00:04]} 43. Rxe3 {[%clk 0:00:13]}  Rxb2 {[%clk 0:00:05]} 44. Kc1 {[%clk 0:00:10]}  Rb4 {[%clk 0:00:03]} 45. Rf3 {[%clk 0:00:07]}  Bf8 {[%clk 0:00:03]} 46. Bd5+ {[%clk 0:00:04]}  Kg7 {[%clk 0:00:02]} 47. Rf7+ {[%clk 0:00:04]}  Kg6 {[%clk 0:00:02]} 48. Rxf8 {[%clk 0:00:05]}  Rd4 {[%clk 0:00:01]} 49. Be4+ {[%clk 0:00:05]}  Kg7 {[%clk 0:00:01]} 50. Rb8 {[%clk 0:00:05]}  a4 {[%clk 0:00:01]} 51. Rxb7+ {[%clk 0:00:05]}  Kf6 {[%clk 0:00:02]} 52. Kc2 {[%clk 0:00:05]}  Kg5 {[%clk 0:00:02]} 53. h4+ {[%clk 0:00:05]}  Kf6 {[%clk 0:00:03]} 54. Rh7 {[%clk 0:00:05]}  Ke6 {[%clk 0:00:03]} 55. Rxh6+ {[%clk 0:00:05]}  Kd7 {[%clk 0:00:03]} 56. Ra6 {[%clk 0:00:05]}  Ke7 {[%clk 0:00:03]} 57. h5 {[%clk 0:00:05]} 1-0


[Site "https://www.chess.com"]

[Event "Titled Tuesday Blitz May 16 Late 2023"]
[White "Womacka, Mathias"]
[Black "Eugene, Floryan"]
[WhiteFideId "4611390"]
[BlackFideId "20694784"]
[WhiteElo "2377"]
[BlackElo "2369"]
[Result "0-1"]
[Round "07"]
[TimeControl "180+2"]
[Date "2023.05.16"]
[WhiteClock "0:00:00"]
[BlackClock "0:00:13"]

1. e4 {[%clk 0:03:00]}  c5 {[%clk 0:02:53]} 2. Nf3 {[%clk 0:03:00]}  e6 {[%clk 0:02:39]} 3. d4 {[%clk 0:03:00]}  cxd4 {[%clk 0:02:36]} 4. Nxd4 {[%clk 0:03:01]}  d5 {[%clk 0:02:24]} 5. Bb5+ {[%clk 0:02:53]}  Bd7 {[%clk 0:02:17]} 6. exd5 {[%clk 0:02:53]}  e5 {[%clk 0:01:50]} 7. Bxd7+ {[%clk 0:02:31]}  Qxd7 {[%clk 0:01:49]} 8. Nb3 {[%clk 0:02:13]}  Nf6 {[%clk 0:01:48]} 9. c4 {[%clk 0:02:12]}  Bb4+ {[%clk 0:01:46]} 10. Bd2 {[%clk 0:02:10]}  Bxd2+ {[%clk 0:01:46]} 11. Qxd2 {[%clk 0:02:06]}  O-O {[%clk 0:01:47]} 12. O-O {[%clk 0:02:05]}  b5 {[%clk 0:01:46]} 13. cxb5 {[%clk 0:01:47]}  Qxd5 {[%clk 0:01:44]} 14. Qxd5 {[%clk 0:01:34]}  Nxd5 {[%clk 0:01:45]} 15. Rd1 {[%clk 0:01:33]}  Nb6 {[%clk 0:01:39]} 16. Nc3 {[%clk 0:01:30]}  a6 {[%clk 0:01:39]} 17. a4 {[%clk 0:01:10]}  axb5 {[%clk 0:01:36]} 18. axb5 {[%clk 0:01:09]}  N8d7 {[%clk 0:01:36]} 19. Kf1 {[%clk 0:00:56]}  f6 {[%clk 0:01:34]} 20. Ra6 {[%clk 0:00:50]}  Kf7 {[%clk 0:01:32]} 21. Nd5 {[%clk 0:00:37]}  Rfb8 {[%clk 0:01:25]} 22. Nc7 {[%clk 0:00:23]}  Rxa6 {[%clk 0:01:25]} 23. bxa6 {[%clk 0:00:23]}  Rc8 {[%clk 0:01:25]} 24. Nd5 {[%clk 0:00:19]}  Ke6 {[%clk 0:01:21]} 25. Nxb6 {[%clk 0:00:18]}  Nxb6 {[%clk 0:01:22]} 26. Na5 {[%clk 0:00:15]}  Ra8 {[%clk 0:01:22]} 27. Nb7 {[%clk 0:00:12]}  Na4 {[%clk 0:01:20]} 28. Rd6+ {[%clk 0:00:10]}  Ke7 {[%clk 0:01:20]} 29. b3 {[%clk 0:00:10]}  Nc3 {[%clk 0:01:17]} 30. Rc6 {[%clk 0:00:10]}  Nb5 {[%clk 0:01:15]} 31. b4 {[%clk 0:00:07]}  Kd7 {[%clk 0:01:14]} 32. Rc5 {[%clk 0:00:07]}  Nd6 {[%clk 0:01:11]} 33. Nxd6 {[%clk 0:00:06]}  Kxd6 {[%clk 0:01:11]} 34. Ra5 {[%clk 0:00:07]}  Kc6 {[%clk 0:01:11]} 35. Ke2 {[%clk 0:00:06]}  Kb6 {[%clk 0:01:11]} 36. Kd3 {[%clk 0:00:06]}  Rd8+ {[%clk 0:00:52]} 37. Ke3 {[%clk 0:00:06]}  Ka7 {[%clk 0:00:49]} 38. b5 {[%clk 0:00:06]}  Kb6 {[%clk 0:00:41]} 39. Ra2 {[%clk 0:00:04]}  Kxb5 {[%clk 0:00:42]} 40. a7 {[%clk 0:00:03]}  Ra8 {[%clk 0:00:42]} 41. Ke4 {[%clk 0:00:03]}  Kc6 {[%clk 0:00:40]} 42. Kf5 {[%clk 0:00:02]}  Kd6 {[%clk 0:00:40]} 43. h4 {[%clk 0:00:03]}  Ke7 {[%clk 0:00:40]} 44. h5 {[%clk 0:00:03]}  Kf7 {[%clk 0:00:41]} 45. Ke4 {[%clk 0:00:02]}  g6 {[%clk 0:00:39]} 46. g4 {[%clk 0:00:03]}  Ke7 {[%clk 0:00:37]} 47. hxg6 {[%clk 0:00:03]}  hxg6 {[%clk 0:00:38]} 48. Kd5 {[%clk 0:00:03]}  Kd7 {[%clk 0:00:36]} 49. g5 {[%clk 0:00:03]}  fxg5 {[%clk 0:00:35]} 50. Kxe5 {[%clk 0:00:04]}  Ke7 {[%clk 0:00:35]} 51. Ra3 {[%clk 0:00:01]}  Kf7 {[%clk 0:00:34]} 52. Kd6 {[%clk 0:00:01]}  g4 {[%clk 0:00:22]} 53. Kc7 {[%clk 0:00:02]}  g3 {[%clk 0:00:23]} 54. Kb7 {[%clk 0:00:02]}  g2 {[%clk 0:00:18]} 55. Ra1 {[%clk 0:00:00]}  Rh8 {[%clk 0:00:13]} 0-1


[Site "https://www.chess.com"]

[Event "Titled Tuesday Blitz May 16 Late 2023"]
[White "Fan_Of_Chucky"]
[Black "Domingo Nunez, Alejandro"]
[BlackFideId "22245561"]
[WhiteElo "2442"]
[BlackElo "2291"]
[Result "0-1"]
[Round "07"]
[TimeControl "180+2"]
[Date "2023.05.16"]
[WhiteClock "0:00:00"]
[BlackClock "0:00:08"]

1. d4 {[%clk 0:03:00]}  g6 {[%clk 0:02:55]} 2. c4 {[%clk 0:03:01]}  Bg7 {[%clk 0:02:56]} 3. Nc3 {[%clk 0:03:00]}  d6 {[%clk 0:02:56]} 4. e4 {[%clk 0:02:59]}  Nf6 {[%clk 0:02:56]} 5. h3 {[%clk 0:02:59]}  O-O {[%clk 0:02:56]} 6. Be3 {[%clk 0:02:59]}  e5 {[%clk 0:02:53]} 7. d5 {[%clk 0:03:00]}  Na6 {[%clk 0:02:53]} 8. g4 {[%clk 0:02:59]}  Nc5 {[%clk 0:02:50]} 9. f3 {[%clk 0:02:59]}  a5 {[%clk 0:02:50]} 10. Qd2 {[%clk 0:02:58]}  h5 {[%clk 0:02:49]} 11. O-O-O {[%clk 0:02:55]}  Nh7 {[%clk 0:02:31]} 12. g5 {[%clk 0:02:32]}  f5 {[%clk 0:02:15]} 13. gxf6 {[%clk 0:02:31]}  Bxf6 {[%clk 0:02:15]} 14. Nge2 {[%clk 0:02:25]}  Bg5 {[%clk 0:02:15]} 15. Rg1 {[%clk 0:02:12]}  Bxe3 {[%clk 0:02:12]} 16. Qxe3 {[%clk 0:02:11]}  Kg7 {[%clk 0:02:11]} 17. f4 {[%clk 0:02:07]}  Qh4 {[%clk 0:01:46]} 18. fxe5 {[%clk 0:02:01]}  Nd7 {[%clk 0:01:27]} 19. exd6 {[%clk 0:01:48]}  cxd6 {[%clk 0:01:27]} 20. Nd4 {[%clk 0:01:34]}  Ne5 {[%clk 0:01:25]} 21. Ncb5 {[%clk 0:01:34]}  Qe7 {[%clk 0:00:57]} 22. Ne2 {[%clk 0:01:11]}  Nxc4 {[%clk 0:00:50]} 23. Qc3+ {[%clk 0:01:08]}  Ne5 {[%clk 0:00:51]} 24. Qc7 {[%clk 0:00:51]}  Qd7 {[%clk 0:00:37]} 25. Qxd7+ {[%clk 0:00:44]}  Bxd7 {[%clk 0:00:38]} 26. Nxd6 {[%clk 0:00:44]}  Rf6 {[%clk 0:00:29]} 27. Nf5+ {[%clk 0:00:30]}  Kh8 {[%clk 0:00:15]} 28. Nfd4 {[%clk 0:00:22]}  Rf2 {[%clk 0:00:12]} 29. Rg2 {[%clk 0:00:17]}  Raf8 {[%clk 0:00:10]} 30. Rxf2 {[%clk 0:00:16]}  Rxf2 {[%clk 0:00:11]} 31. Ne6 {[%clk 0:00:14]}  Nf6 {[%clk 0:00:10]} 32. Nc5 {[%clk 0:00:09]}  Bb5 {[%clk 0:00:10]} 33. Rd2 {[%clk 0:00:04]}  Rxf1+ {[%clk 0:00:10]} 34. Kc2 {[%clk 0:00:04]}  Nf3 {[%clk 0:00:08]} 35. Ng3 {[%clk 0:00:01]}  Nxd2 {[%clk 0:00:08]} 36. Nxf1 {[%clk 0:00:02]}  Nxf1 {[%clk 0:00:09]} 37. d6 {[%clk 0:00:02]}  Ne3+ {[%clk 0:00:09]} 38. Kc3 {[%clk 0:00:02]}  Nc4 {[%clk 0:00:08]} 39. e5 {[%clk 0:00:01]}  Nxe5 {[%clk 0:00:08]} 40. a4 {[%clk 0:00:00]}  Bc6 {[%clk 0:00:08]} 0-1


[Site "https://www.chess.com"]

[Event "Titled Tuesday Blitz May 16 Late 2023"]
[White "Omranalhosani21"]
[Black "Yeritsyan, Hayk"]
[BlackFideId "13307320"]
[WhiteElo "2570"]
[BlackElo "2440"]
[Result "0-1"]
[Round "07"]
[TimeControl "180+2"]
[Date "2023.05.16"]
[WhiteClock "0:00:00"]
[BlackClock "0:00:02"]

1. e4 {[%clk 0:03:00]}  c6 {[%clk 0:02:35]} 2. d4 {[%clk 0:03:00]}  d5 {[%clk 0:02:35]} 3. e5 {[%clk 0:03:00]}  c5 {[%clk 0:02:35]} 4. c3 {[%clk 0:02:59]}  Nc6 {[%clk 0:02:35]} 5. Nf3 {[%clk 0:02:59]}  cxd4 {[%clk 0:02:35]} 6. cxd4 {[%clk 0:02:55]}  Bg4 {[%clk 0:02:35]} 7. Be2 {[%clk 0:02:41]}  e6 {[%clk 0:02:34]} 8. Be3 {[%clk 0:02:40]}  Nge7 {[%clk 0:02:31]} 9. O-O {[%clk 0:02:36]}  Nf5 {[%clk 0:02:31]} 10. Nc3 {[%clk 0:02:35]}  Be7 {[%clk 0:02:31]} 11. Qb3 {[%clk 0:02:22]}  a6 {[%clk 0:02:20]} 12. Rfd1 {[%clk 0:02:19]}  O-O {[%clk 0:02:09]} 13. h3 {[%clk 0:02:03]}  Bxf3 {[%clk 0:02:07]} 14. Bxf3 {[%clk 0:02:04]}  Na5 {[%clk 0:02:05]} 15. Qc2 {[%clk 0:02:03]}  Rc8 {[%clk 0:02:01]} 16. Bf4 {[%clk 0:01:52]}  Qb6 {[%clk 0:01:55]} 17. Nxd5 {[%clk 0:01:37]}  Rxc2 {[%clk 0:01:29]} 18. Nxb6 {[%clk 0:01:37]}  Rxb2 {[%clk 0:01:29]} 19. Bd2 {[%clk 0:00:44]}  Bb4 {[%clk 0:00:59]} 20. Bc1 {[%clk 0:00:26]}  Rc2 {[%clk 0:00:46]} 21. Be4 {[%clk 0:00:26]}  Rc7 {[%clk 0:00:43]} 22. d5 {[%clk 0:00:23]}  Bc3 {[%clk 0:00:38]} 23. Rb1 {[%clk 0:00:22]}  Bxe5 {[%clk 0:00:37]} 24. Bxf5 {[%clk 0:00:18]}  exf5 {[%clk 0:00:37]} 25. d6 {[%clk 0:00:18]}  Rc6 {[%clk 0:00:32]} 26. d7 {[%clk 0:00:17]}  Rd8 {[%clk 0:00:32]} 27. Ba3 {[%clk 0:00:15]}  Bc7 {[%clk 0:00:25]} 28. Nd5 {[%clk 0:00:14]}  Kh8 {[%clk 0:00:16]} 29. Bb4 {[%clk 0:00:09]}  Nc4 {[%clk 0:00:09]} 30. Be7 {[%clk 0:00:07]}  Rxd7 {[%clk 0:00:08]} 31. Nxc7 {[%clk 0:00:07]}  Rcxc7 {[%clk 0:00:08]} 32. Bh4 {[%clk 0:00:04]}  h6 {[%clk 0:00:08]} 33. Re1 {[%clk 0:00:03]}  Kh7 {[%clk 0:00:07]} 34. Bg3 {[%clk 0:00:04]}  Rc6 {[%clk 0:00:07]} 35. Re8 {[%clk 0:00:04]}  b5 {[%clk 0:00:07]} 36. h4 {[%clk 0:00:04]}  h5 {[%clk 0:00:06]} 37. Rbe1 {[%clk 0:00:03]}  Kg6 {[%clk 0:00:06]} 38. Rh8 {[%clk 0:00:02]}  Nd6 {[%clk 0:00:05]} 39. Ra8 {[%clk 0:00:02]}  Ne4 {[%clk 0:00:05]} 40. Bf4 {[%clk 0:00:02]}  f6 {[%clk 0:00:05]} 41. f3 {[%clk 0:00:02]}  Nc5 {[%clk 0:00:05]} 42. Ree8 {[%clk 0:00:02]}  Ne6 {[%clk 0:00:03]} 43. Rac8 {[%clk 0:00:01]}  Rxc8 {[%clk 0:00:02]} 44. Rxc8 {[%clk 0:00:02]}  Nxf4 {[%clk 0:00:03]} 45. Kf2 {[%clk 0:00:01]}  Ne6 {[%clk 0:00:01]} 46. Rc6 {[%clk 0:00:00]}  Kf7 {[%clk 0:00:02]} 0-1


[Site "https://www.chess.com"]

[Event "Titled Tuesday Blitz May 16 Late 2023"]
[White "Colbow, Collin"]
[Black "liwadas82"]
[WhiteFideId "16201132"]
[WhiteElo "2351"]
[BlackElo "2440"]
[Result "1/2-1/2"]
[Round "07"]
[TimeControl "180+2"]
[Date "2023.05.16"]
[WhiteClock "0:00:03"]
[BlackClock "0:00:05"]

1. Nf3 {[%clk 0:03:00]}  Nf6 {[%clk 0:02:59]} 2. g3 {[%clk 0:03:01]}  b5 {[%clk 0:02:59]} 3. Bg2 {[%clk 0:03:02]}  Bb7 {[%clk 0:02:59]} 4. O-O {[%clk 0:03:03]}  e6 {[%clk 0:02:59]} 5. d3 {[%clk 0:03:03]}  d5 {[%clk 0:02:59]} 6. Nbd2 {[%clk 0:03:04]}  Nbd7 {[%clk 0:02:56]} 7. Re1 {[%clk 0:03:04]}  Be7 {[%clk 0:02:55]} 8. e4 {[%clk 0:03:05]}  dxe4 {[%clk 0:02:52]} 9. dxe4 {[%clk 0:03:06]}  Nc5 {[%clk 0:02:52]} 10. e5 {[%clk 0:03:02]}  Nfe4 {[%clk 0:02:37]} 11. Nb3 {[%clk 0:02:23]}  Nxb3 {[%clk 0:02:29]} 12. axb3 {[%clk 0:02:23]}  Qxd1 {[%clk 0:02:23]} 13. Rxd1 {[%clk 0:02:24]}  Bc5 {[%clk 0:02:22]} 14. Nd4 {[%clk 0:02:22]}  O-O-O {[%clk 0:02:15]} 15. Be3 {[%clk 0:02:22]}  Bb6 {[%clk 0:02:03]} 16. Nxb5 {[%clk 0:02:14]}  Rxd1+ {[%clk 0:01:56]} 17. Rxd1 {[%clk 0:02:13]}  Bxe3 {[%clk 0:01:52]} 18. fxe3 {[%clk 0:02:13]}  a6 {[%clk 0:01:38]} 19. Nc3 {[%clk 0:02:14]}  Nxc3 {[%clk 0:01:06]} 20. Bxb7+ {[%clk 0:02:15]}  Kxb7 {[%clk 0:01:06]} 21. bxc3 {[%clk 0:02:16]}  Kc6 {[%clk 0:01:03]} 22. Kf2 {[%clk 0:02:16]}  a5 {[%clk 0:00:55]} 23. Ra1 {[%clk 0:02:15]}  Kb6 {[%clk 0:00:52]} 24. Ra4 {[%clk 0:02:09]}  c5 {[%clk 0:00:50]} 25. Rg4 {[%clk 0:01:58]}  g6 {[%clk 0:00:47]} 26. Rf4 {[%clk 0:01:59]}  Rd8 {[%clk 0:00:46]} 27. Ke2 {[%clk 0:01:58]}  Rd7 {[%clk 0:00:45]} 28. g4 {[%clk 0:01:54]}  h6 {[%clk 0:00:42]} 29. c4 {[%clk 0:01:45]}  a4 {[%clk 0:00:39]} 30. bxa4 {[%clk 0:01:43]}  Ka5 {[%clk 0:00:39]} 31. h4 {[%clk 0:01:35]}  Kxa4 {[%clk 0:00:39]} 32. h5 {[%clk 0:01:36]}  gxh5 {[%clk 0:00:38]} 33. gxh5 {[%clk 0:01:37]}  Kb4 {[%clk 0:00:38]} 34. Kf3 {[%clk 0:00:52]}  Rd2 {[%clk 0:00:19]} 35. Rxf7 {[%clk 0:00:48]}  Kxc4 {[%clk 0:00:16]} 36. Ke4 {[%clk 0:00:40]}  Rh2 {[%clk 0:00:13]} 37. Rf6 {[%clk 0:00:38]}  Rh4+ {[%clk 0:00:10]} 38. Kf3 {[%clk 0:00:38]}  Rxh5 {[%clk 0:00:10]} 39. Rxe6 {[%clk 0:00:29]}  Kd5 {[%clk 0:00:10]} 40. Ra6 {[%clk 0:00:17]}  Kxe5 {[%clk 0:00:09]} 41. c4 {[%clk 0:00:14]}  Rh4 {[%clk 0:00:08]} 42. Rc6 {[%clk 0:00:12]}  Rxc4 {[%clk 0:00:07]} 43. Rxh6 {[%clk 0:00:13]}  Rc1 {[%clk 0:00:07]} 44. Rh5+ {[%clk 0:00:13]}  Kd6 {[%clk 0:00:06]} 45. Ke4 {[%clk 0:00:14]}  c4 {[%clk 0:00:06]} 46. Kd4 {[%clk 0:00:13]}  c3 {[%clk 0:00:06]} 47. Rh6+ {[%clk 0:00:12]}  Ke7 {[%clk 0:00:06]} 48. Rh7+ {[%clk 0:00:09]}  Ke6 {[%clk 0:00:06]} 49. Rc7 {[%clk 0:00:09]}  Rd1+ {[%clk 0:00:05]} 50. Ke4 {[%clk 0:00:08]}  Rc1 {[%clk 0:00:05]} 51. Rc4 {[%clk 0:00:06]}  c2 {[%clk 0:00:05]} 52. Kd3 {[%clk 0:00:06]}  Kd5 {[%clk 0:00:04]} 53. Rd4+ {[%clk 0:00:04]}  Ke5 {[%clk 0:00:04]} 54. Kd2 {[%clk 0:00:05]}  Rd1+ {[%clk 0:00:04]} 55. Kxc2 {[%clk 0:00:03]}  Rxd4 {[%clk 0:00:05]} 56. exd4+ {[%clk 0:00:03]}  Kxd4 {[%clk 0:00:05]} 1/2-1/2


[Site "https://www.chess.com"]

[Event "Titled Tuesday Blitz May 16 Late 2023"]
[White "Toniutti, Ezio"]
[Black "Janaszak, Dawid"]
[WhiteFideId "113034"]
[BlackFideId "1119206"]
[WhiteElo "2215"]
[BlackElo "2220"]
[Result "1-0"]
[Round "07"]
[TimeControl "180+2"]
[Date "2023.05.16"]
[WhiteClock "0:00:06"]
[BlackClock "0:00:12"]

1. d4 {[%clk 0:03:00]}  d5 {[%clk 0:02:58]} 2. c4 {[%clk 0:03:00]}  e6 {[%clk 0:02:58]} 3. Nf3 {[%clk 0:02:58]}  c5 {[%clk 0:02:59]} 4. cxd5 {[%clk 0:02:58]}  exd5 {[%clk 0:02:59]} 5. Nc3 {[%clk 0:02:57]}  Nc6 {[%clk 0:02:58]} 6. dxc5 {[%clk 0:02:58]}  d4 {[%clk 0:02:58]} 7. Na4 {[%clk 0:02:58]}  b5 {[%clk 0:02:57]} 8. cxb6 {[%clk 0:02:44]}  axb6 {[%clk 0:02:57]} 9. Bd2 {[%clk 0:02:16]}  Nf6 {[%clk 0:02:35]} 10. Rc1 {[%clk 0:02:12]}  Bd7 {[%clk 0:02:32]} 11. e3 {[%clk 0:02:03]}  Nb4 {[%clk 0:02:19]} 12. b3 {[%clk 0:01:38]}  d3 {[%clk 0:02:12]} 13. Nd4 {[%clk 0:01:08]}  Nxa2 {[%clk 0:01:55]} 14. Ra1 {[%clk 0:00:58]}  Nb4 {[%clk 0:01:55]} 15. Qb1 {[%clk 0:00:53]}  b5 {[%clk 0:01:51]} 16. Nc3 {[%clk 0:00:31]}  Nc2+ {[%clk 0:01:50]} 17. Nxc2 {[%clk 0:00:28]}  dxc2 {[%clk 0:01:51]} 18. Qc1 {[%clk 0:00:28]}  Rxa1 {[%clk 0:01:45]} 19. Qxa1 {[%clk 0:00:29]}  b4 {[%clk 0:01:38]} 20. Nb5 {[%clk 0:00:29]}  Be7 {[%clk 0:01:25]} 21. Nd4 {[%clk 0:00:28]}  Ne4 {[%clk 0:01:23]} 22. Qc1 {[%clk 0:00:27]}  Bh4 {[%clk 0:01:12]} 23. g3 {[%clk 0:00:24]}  Qf6 {[%clk 0:01:12]} 24. f3 {[%clk 0:00:19]}  Nxd2 {[%clk 0:01:03]} 25. Qxd2 {[%clk 0:00:18]}  Bg5 {[%clk 0:01:00]} 26. f4 {[%clk 0:00:18]}  Bh6 {[%clk 0:00:58]} 27. Qxc2 {[%clk 0:00:17]}  O-O {[%clk 0:00:58]} 28. Bg2 {[%clk 0:00:18]}  Rc8 {[%clk 0:00:59]} 29. Qd2 {[%clk 0:00:17]}  Qa6 {[%clk 0:00:58]} 30. Kf2 {[%clk 0:00:17]}  Rc3 {[%clk 0:00:57]} 31. Rc1 {[%clk 0:00:16]}  Qc8 {[%clk 0:00:58]} 32. Rxc3 {[%clk 0:00:16]}  bxc3 {[%clk 0:00:59]} 33. Qc2 {[%clk 0:00:16]}  g6 {[%clk 0:00:58]} 34. Ne2 {[%clk 0:00:16]}  Bg7 {[%clk 0:00:58]} 35. Be4 {[%clk 0:00:16]}  Be6 {[%clk 0:00:58]} 36. Bd3 {[%clk 0:00:15]}  Qc6 {[%clk 0:00:57]} 37. b4 {[%clk 0:00:15]}  h5 {[%clk 0:00:55]} 38. b5 {[%clk 0:00:14]}  Qh1 {[%clk 0:00:55]} 39. Be4 {[%clk 0:00:13]}  Qxh2+ {[%clk 0:00:55]} 40. Ke1 {[%clk 0:00:13]}  Bc4 {[%clk 0:00:52]} 41. Bd3 {[%clk 0:00:12]}  Qh1+ {[%clk 0:00:50]} 42. Kf2 {[%clk 0:00:12]}  Bd5 {[%clk 0:00:50]} 43. e4 {[%clk 0:00:11]}  Be6 {[%clk 0:00:47]} 44. b6 {[%clk 0:00:11]}  Bf8 {[%clk 0:00:42]} 45. Qxc3 {[%clk 0:00:10]}  Qh2+ {[%clk 0:00:42]} 46. Ke3 {[%clk 0:00:10]}  Bg7 {[%clk 0:00:27]} 47. e5 {[%clk 0:00:09]}  Qh1 {[%clk 0:00:24]} 48. Be4 {[%clk 0:00:07]}  Qf1 {[%clk 0:00:22]} 49. b7 {[%clk 0:00:08]}  Bg4 {[%clk 0:00:23]} 50. b8=Q+ {[%clk 0:00:07]}  Kh7 {[%clk 0:00:23]} 51. Qd3 {[%clk 0:00:06]}  h4 {[%clk 0:00:20]} 52. Qc7 {[%clk 0:00:06]}  hxg3 {[%clk 0:00:20]} 53. Qxf7 {[%clk 0:00:07]}  Bh5 {[%clk 0:00:20]} 54. Bxg6+ {[%clk 0:00:06]}  Kh6 {[%clk 0:00:19]} 55. Bxh5 {[%clk 0:00:06]}  Qf2+ {[%clk 0:00:20]} 56. Ke4 {[%clk 0:00:06]}  Kh7 {[%clk 0:00:17]} 57. Bg6+ {[%clk 0:00:06]}  Kh6 {[%clk 0:00:18]} 58. Bf5 {[%clk 0:00:06]}  Qb6 {[%clk 0:00:12]} 59. Qg6+ {[%clk 0:00:06]} 1-0


[Site "https://www.chess.com"]

[Event "Titled Tuesday Blitz May 16 Late 2023"]
[White "Moral Garcia, Serafin"]
[Black "Mortazavi, Ali"]
[WhiteFideId "2201925"]
[BlackFideId "401323"]
[WhiteElo "2274"]
[BlackElo "2339"]
[Result "1-0"]
[Round "07"]
[TimeControl "180+2"]
[Date "2023.05.16"]
[WhiteClock "0:00:19"]
[BlackClock "0:00:09"]

1. e4 {[%clk 0:03:00]}  c6 {[%clk 0:02:59]} 2. d4 {[%clk 0:03:00]}  d5 {[%clk 0:03:00]} 3. exd5 {[%clk 0:03:01]}  cxd5 {[%clk 0:03:00]} 4. c4 {[%clk 0:03:01]}  Nf6 {[%clk 0:03:00]} 5. Nc3 {[%clk 0:03:02]}  g6 {[%clk 0:03:01]} 6. cxd5 {[%clk 0:03:02]}  Nxd5 {[%clk 0:03:01]} 7. Bc4 {[%clk 0:03:01]}  Nb6 {[%clk 0:03:01]} 8. Bb3 {[%clk 0:03:01]}  Bg7 {[%clk 0:03:02]} 9. d5 {[%clk 0:03:02]}  O-O {[%clk 0:03:02]} 10. Nf3 {[%clk 0:03:02]}  N8d7 {[%clk 0:02:52]} 11. Be3 {[%clk 0:02:58]}  Nf6 {[%clk 0:02:48]} 12. h3 {[%clk 0:02:52]}  Bd7 {[%clk 0:02:37]} 13. O-O {[%clk 0:02:48]}  Rc8 {[%clk 0:02:36]} 14. Bd4 {[%clk 0:02:48]}  Nc4 {[%clk 0:02:27]} 15. Qe2 {[%clk 0:02:46]}  b5 {[%clk 0:02:23]} 16. a4 {[%clk 0:02:41]}  a6 {[%clk 0:02:22]} 17. axb5 {[%clk 0:02:41]}  Bxb5 {[%clk 0:02:13]} 18. Nxb5 {[%clk 0:02:34]}  axb5 {[%clk 0:02:12]} 19. Ra7 {[%clk 0:02:30]}  Nxd5 {[%clk 0:02:06]} 20. Bxg7 {[%clk 0:02:28]}  Kxg7 {[%clk 0:02:06]} 21. Rd1 {[%clk 0:02:13]}  e6 {[%clk 0:02:06]} 22. Qxe6 {[%clk 0:02:07]}  Qb6 {[%clk 0:01:28]} 23. Rxf7+ {[%clk 0:01:47]}  Rxf7 {[%clk 0:01:28]} 24. Qxc8 {[%clk 0:01:47]}  Nf4 {[%clk 0:01:12]} 25. Bxc4 {[%clk 0:01:27]}  bxc4 {[%clk 0:01:11]} 26. Ne5 {[%clk 0:01:06]}  Ne2+ {[%clk 0:01:03]} 27. Kh1 {[%clk 0:01:06]}  Rxf2 {[%clk 0:00:46]} 28. Rd7+ {[%clk 0:00:58]}  Kh6 {[%clk 0:00:44]} 29. Ng4+ {[%clk 0:00:59]}  Kg5 {[%clk 0:00:42]} 30. Nxf2 {[%clk 0:00:56]}  Qxf2 {[%clk 0:00:41]} 31. Qd8+ {[%clk 0:00:29]}  Kh6 {[%clk 0:00:39]} 32. Rd1 {[%clk 0:00:29]}  Ng3+ {[%clk 0:00:37]} 33. Kh2 {[%clk 0:00:29]}  Qf4 {[%clk 0:00:35]} 34. Qd4 {[%clk 0:00:21]}  Ne4+ {[%clk 0:00:20]} 35. Kg1 {[%clk 0:00:20]}  g5 {[%clk 0:00:18]} 36. Rf1 {[%clk 0:00:19]}  Ng3 {[%clk 0:00:11]} 37. Rxf4 {[%clk 0:00:19]}  Ne2+ {[%clk 0:00:09]} 38. Kf2 {[%clk 0:00:19]} 1-0


[Site "https://www.chess.com"]